Cogmind - Beta 10.2 @@@ ROGUE MODE // 2021.06.07 @ 19:51:37 Player: Plexion Result: Self-destructed Performance ------------- Evolutions (3) 1500 Regions Visited (8) 1600 Robots Destroyed (58) 290 Value Destroyed (1620) 1620 Prototype IDs (24) 480 Alien Tech Used (0) 0 Bonus (316) 316 TOTAL SCORE: 5806 Bonus ------- High Alert Combat Kills 16 Aligned with FarCom 300 Cogmind --------- Core Integrity 556/700 Matter 91/300 Energy 37/100 System Corruption 2% Temperature Cool (0) Movement Core (900) Ox17 Location -7/Lower Caves Parts ------- > --- POWER (1) -------- (None) > --- PROPULSION (4) --- (None) > --- UTILITY (6) ------ Large Storage Unit High-capacity Storage Unit Long-range Terrain Scanner System Shield > --- WEAPON (2) ------- Gauss Rifle > --- INVENTORY (18) --- Large Storage Unit High-capacity Storage Unit Reactive Plating Improved EM Pulse Cannon Heavy Assault Rifle Improved Assault Rifle Improved Assault Rifle Plasma Cutter Plasma Cutter Axe Axe Great Axe Great Axe Peak State ------------ > --- POWER ------------ Nuclear Core > --- PROPULSION ------- Flying Fortress v7 > --- UTILITY ---------- Large Storage Unit High-capacity Storage Unit Advanced Sensor Array Long-range Terrain Scanner Light Armor Plating System Shield > --- WEAPON ----------- Improved Assault Rifle Gauss Rifle > --- INVENTORY -------- Large Storage Unit High-capacity Storage Unit Reactive Plating Improved EM Pulse Cannon Heavy Assault Rifle Improved Assault Rifle Improved Assault Rifle Missile Launcher Heavy Rocket Launcher Plasma Cutter Plasma Cutter Axe Axe Great Axe Great Axe [Rating: 59] Favorites ----------- Power Ion Engine Engine Ion Engine Power Core Light Nuclear Core Propulsion Light Treads Treads Light Treads Leg Carbon-fiber Leg Flight Unit Flying Fortress v7 Utility High-capacity Storage Unit Device Advanced Sensor Array Storage High-capacity Storage Unit Hackware System Shield Protection Light Armor Plating Weapon Light Assault Rifle Energy Gun Medium Laser Ballistic Gun Light Assault Rifle Launcher Missile Launcher Slashing Weapon Great Axe Build | -11 -10 -10 -10 -9 -8 -7 -7 -7 ------- Run | Scr Mat Min Exi Min Mat Fac Low Low Slots Evolved 6 | . . . . . 4 2 . . Power . | . . . . . . . . . Propulsion 2 | . . . . . 1 1 . . Utility 4 | . . . . . 3 1 . . Weapon . | . . . . . . . . . Parts Attached 64 | 6 5 2 2 . 25 10 9 5 Power 7 | 1 1 . . . 2 2 1 . Engine 2 | 1 1 . . . . . . . Core 5 | . . . . . 2 2 1 . Reactor . | . . . . . . . . . Propulsion 15 | 2 . . . . 10 1 2 . Treads 11 | 2 . . . . 9 . . . Leg 1 | . . . . . 1 . . . Wheel . | . . . . . . . . . Hover . | . . . . . . . . . Flight 3 | . . . . . . 1 2 . Utility 21 | 1 3 . 2 . 8 5 2 . Device 2 | . . . . . . 1 1 . Storage 7 | 1 3 . 2 . . 1 . . Processor . | . . . . . . . . . Hackware 1 | . . . . . . 1 . . Protection 11 | . . . . . 8 2 1 . Artifact . | . . . . . . . . . Weapon 21 | 2 1 2 . . 5 2 4 5 Energy Gun 1 | . 1 . . . . . . . Energy Cannon . | . . . . . . . . . Ballistic Gun 11 | 2 . 2 . . 5 . 1 1 Ballistic Cannon . | . . . . . . . . . Launcher 4 | . . . . . . . 1 3 Special Weapon . | . . . . . . . . . Impact Weapon . | . . . . . . . . . Slashing Weapon 5 | . . . . . . 2 2 1 Piercing Weapon . | . . . . . . . . . Special Melee Weapon . | . . . . . . . . . Unidentified Prototypes 1 | . . . . . 1 . . . Parts Lost 19 | . 2 2 . . 7 1 1 6 Power 4 | . 1 . . . 2 . . 1 Propulsion 2 | . . . . . 2 . . . Utility 7 | . . . . . 3 1 1 2 Weapon 6 | . 1 2 . . . . . 3 Highest Loss Streak 3 | . 2 2 . . 3 1 1 3 Average Slot Usage (%) 92 | . 97 99 100 100 98 73 73 63 Engine 7 | . 12 14 14 14 2 . . . Core 3 | . . . . . 6 7 6 5 Treads 21 | . 28 28 28 28 25 1 . . Flight 1 | . . . . . . 6 5 7 Device 1 | . . . . . . 6 11 11 Storage 22 | . 26 28 28 28 18 15 15 15 Protection 10 | . . . . . 26 18 10 2 Energy Gun 1 | . 6 2 . . . . . . Ballistic Gun 18 | . 21 24 28 28 17 7 9 4 Naked Turns . | . . . . . . . . . Heaviest Build 91 | 10 41 41 71 71 91 84 69 68 Greatest Support 72 | 40 40 40 40 40 62 72 72 72 Greatest Overweight (x) 2 | . 1 1 1 1 2 1 . . Average Overweight (x) . | . . . . 1 1 . . . Largest Inventory Capacity 20 | 6 16 16 20 20 20 20 18 18 Average Capacity 17 | 4 13 16 18 20 20 18 18 18 Most Carried 20 | 1 11 11 16 17 20 20 18 17 Average Carried 12 | . 5 9 11 16 19 16 15 14 Final Capacity 20 | 6 16 16 20 20 20 18 18 18 Final Carried 20 | 1 11 9 16 17 20 18 15 13 Class Distribution -------------------- 60% | Mutant 33% | Hauler-Mutant 5% | Scavenger-Mutant Dominant Class ---------------- Mutant | -10/Materials Mutant | -10/Mines Hauler-Mutant | -10/Exiles Hauler-Mutant | -9/Mines Hauler-Mutant | -8/Materials Mutant | -7/Factory Mutant | -7/Lower Caves Mutant | -7/Lower Caves Resources | -11 -10 -10 -10 -9 -8 -7 -7 -7 ----------- Run | Scr Mat Min Exi Min Mat Fac Low Low Matter Collected 1487 | 215 241 34 . 12 660 28 14 283 Remotely . | . . . . . . . . . Salvage Created 1873 | . 541 78 . . 987 28 35 204 Parts 115 | . 25 4 . . 69 . 5 12 Haulers Intercepted 2 | . 2 . . . . . . . Recyclers Shooed 2 | . 1 1 . . . . . . Parts Field Recycled . | . . . . . . . . . Retrieved Matter . | . . . . . . . . . Parts Self-Destructed 10 | . . . . . . . 4 6 Prevented . | . . . . . . . . . Kills | -11 -10 -10 -10 -9 -8 -7 -7 -7 ------- Run | Scr Mat Min Exi Min Mat Fac Low Low Combat Hostiles Destroyed 48 | . 8 2 . . 22 . 3 13 Guns 34 | . 8 2 . . 22 . . 2 AOE 14 | . . . . . . . 3 11 Classes Destroyed 11 | . 5 . . . 5 . . 1 Worker 4 | . 1 . . . 2 1 . . Builder 1 | . . . . . 1 . . . Hauler 2 | . 2 . . . . . . . Recycler 3 | . 2 . . . 1 . . . Swarmer 23 | . 3 . . . 7 . 3 10 Grunt 13 | . 5 2 . . 6 . . . Brawler 1 | . . . . . 1 . . . Duelist 1 | . . . . . 1 . . . Sentry 7 | . . . . . 6 . . 1 Hunter 1 | . . . . . 1 . . . Programmer 2 | . . . . . . . . 2 Best Kill Streak 4 | . 4 2 . . 3 1 3 4 Combat Bots Only 4 | . 4 2 . . 3 . 3 4 Max Kills in Single Turn 2 | . 1 1 . . 2 1 1 2 Gunslinging . | . . . . . . . . . Exploded 2 | . . . . . . . 1 2 Melee . | . . . . . . . . . Uniques/NPCs Destroyed . | . . . . . . . . . Combat | -11 -10 -10 -10 -9 -8 -7 -7 -7 -------- Run | Scr Mat Min Exi Min Mat Fac Low Low Damage Taken 3702 | . 464 200 . . 1987 104 46 901 Core 435 | . 100 29 . . 162 . . 144 Absorbed by Shields . | . . . . . . . . . Core Remaining (%) 72 | 100 . . . 48 70 . . . Volleys Fired 186 | 2 38 12 . . 101 . 10 23 Largest 2 | 2 2 2 . . 2 . 2 1 Hottest 70 | 40 70 70 . . 46 . 51 39 Shots Fired 344 | 4 76 23 . . 202 . 16 23 Gun 328 | 4 76 23 . . 202 . 13 10 Cannon . | . . . . . . . . . Launcher 16 | . . . . . . . 3 13 Special . | . . . . . . . . . Kinetic 319 | 4 72 18 . . 202 . 13 10 Thermal 9 | . 4 5 . . . . . . Explosive 16 | . . . . . . . 3 13 Electromagnetic . | . . . . . . . . . Robot Hit Streak 56 | 4 10 13 . . 56 . 5 6 Robot Miss Streak 4 | . 4 1 . . 3 . 2 2 Penetration Max . | . . . . . . . . . Secondary Targets 4 | . 2 . . . 2 . . . Max Gunslinging Chain 1 | . 1 . . . 1 . . . Shots Hit Robots 263 | 4 55 17 . . 163 2 10 12 Core Hits 111 | . 25 5 . . 53 1 4 23 Critical Hits 3 | . . . . . 1 1 1 . Critical Kills 2 | . . . . . 1 1 . . Critical Parts Destroyed 1 | . . . . . . . 1 . Melee Attacks 17 | . . . . . . 7 5 5 Impact . | . . . . . . . . . Slashing 17 | . . . . . . 7 5 5 Piercing . | . . . . . . . . . Sneak Attacks 1 | . . . . . . 1 . . Combat Hostiles . | . . . . . . . . . Follow-up Attacks . | . . . . . . . . . Damage Inflicted 4699 | 37 618 161 . . 1945 153 519 1266 Guns 3126 | 37 618 161 . . 1945 . 148 217 Cannons . | . . . . . . . . . Explosions 1309 | . . . . . . . 260 1049 Melee 264 | . . . . . . 153 111 . Ramming . | . . . . . . . . . Kinetic 3010 | 37 565 98 . . 1945 . 148 217 Thermal 116 | . 53 63 . . . . . . Explosive 1309 | . . . . . . . 260 1049 Electromagnetic . | . . . . . . . . . Impact . | . . . . . . . . . Slashing 264 | . . . . . . 153 111 . Piercing . | . . . . . . . . . Highest Corruption 2 | . 1 1 1 1 . 2 2 2 Average Corruption 1 | . 1 1 1 1 . 2 2 2 Corruption Purged . | . . . . . . . . . Effects 6 | . . 1 . . . 1 1 3 Message Errors 1 | . . 1 . . . . . . Heat Flow Errors 1 | . . . . . . 1 . . Energy Discharges 1 | . . . . . . . . 1 Data Loss (minor) 1 | . . . . . . . 1 . Targeting Errors 2 | . . . . . . . . 2 Overload Shots . | . . . . . . . . . Overflow Damage 193 | . . . . . . 81 14 98 Projectiles . | . . . . . . . . . Explosions 98 | . . . . . . . . 98 Melee 95 | . . . . . . 81 14 . Knockbacks . | . . . . . . . . . Impact . | . . . . . . . . . Kinetic . | . . . . . . . . . Secondary . | . . . . . . . . . Self-Inflicted Damage 156 | . . . . . . . . 156 Shots 5 | . . . . . . . . 5 Rammed . | . . . . . . . . . Targets Rammed . | . . . . . . . . . Kicked . | . . . . . . . . . Crushed . | . . . . . . . . . Highest Temperature 220 | . 18 100 . . 177 220 30 17 Average Temperature 46 | . 10 55 . . 44 119 15 7 Received Heat Transfer 1044 | . 123 111 . . 675 51 . 84 Siege Activations . | . . . . . . . . . Robots Corrupted . | . . . . . . . . . Combat Hostiles . | . . . . . . . . . Parts Fried . | . . . . . . . . . Impact Corruptions . | . . . . . . . . . Robots Melted . | . . . . . . . . . Combat Hostiles . | . . . . . . . . . Parts Melted . | . . . . . . . . . Heat Transferred 333 | . 148 185 . . . . . . Parts Sabotaged . | . . . . . . . . . Parts Stolen 3 | . . . . . . . 2 1 Parts Stripped . | . . . . . . . . . Power Chain Reactions . | . . . . . . . . . Missiles Intercepted . | . . . . . . . . . Alert | -11 -10 -10 -10 -9 -8 -7 -7 -7 ------- Run | Scr Mat Min Exi Min Mat Fac Low Low Peak Influence 261 | . 261 84 . . 239 185 . . Initial 71 | . . 54 . . . 71 . . Average 106 | . 90 77 . . 138 117 . . Maximum Alert Level 1 | . 1 . . . 1 . . . Low Security (%) 89 | 100 86 100 . 100 85 100 . . Level 1 10 | . 13 . . . 14 . . . Level 2 . | . . . . . . . . . Level 3 . | . . . . . . . . . Level 4 . | . . . . . . . . . Level 5 . | . . . . . . . . . High Security . | . . . . . . . . . Max Security . | . . . . . . . . . Squads Dispatched 8 | . 2 . . . 4 2 . . Investigation 1 | . . . . . . 1 . . Extermination . | . . . . . . . . . Reinforcement 4 | . 2 . . . 1 1 . . Assault . | . . . . . . . . . Garrison 3 | . . . . . 3 . . . Intercept . | . . . . . . . . . Construction Impeded . | . . . . . . . . . Haulers Reinforced . | . . . . . . . . . Stealth | -11 -10 -10 -10 -9 -8 -7 -7 -7 --------- Run | Scr Mat Min Exi Min Mat Fac Low Low Distress Signals 9 | . 2 . . . 7 . . . Communications Jammed . | . . . . . . . . . Distress Signals . | . . . . . . . . . Times Spotted 104 | . 25 2 . . 38 10 7 22 Peak Tracking Total 7 | . 4 2 . . 7 4 3 5 Tactical Retreats 10 | . 1 . . . 2 4 1 2 Traps | -11 -10 -10 -10 -9 -8 -7 -7 -7 ------- Run | Scr Mat Min Exi Min Mat Fac Low Low Traps Triggered 5 | . 4 . . . . 1 . . Indirectly . | . . . . . . . . . Trap Hack Attempts . | . . . . . . . . . Triggered . | . . . . . . . . . Disarmed . | . . . . . . . . . Reprogrammed . | . . . . . . . . . Reused . | . . . . . . . . . Traps Extracted . | . . . . . . . . . Installed . | . . . . . . . . . Triggered . | . . . . . . . . . Machines | -11 -10 -10 -10 -9 -8 -7 -7 -7 ---------- Run | Scr Mat Min Exi Min Mat Fac Low Low Machines Disabled 2 | . . . . . . . . 2 Max in Single Turn 1 | . . . . . . . . 1 Machines Sabotaged . | . . . . . . . . . Garrisons Compromised . | . . . . . . . . . Overloaded Fab Kills . | . . . . . . . . . Fab Network Shutdowns . | . . . . . . . . . Hacking | -11 -10 -10 -10 -9 -8 -7 -7 -7 --------- Run | Scr Mat Min Exi Min Mat Fac Low Low Machines Accessed 9 | . 4 . 2 . . 2 . 1 Terminals 6 | . 4 . . . . 2 . . Fabricators . | . . . . . . . . . Repair Stations . | . . . . . . . . . Recycling Units . | . . . . . . . . . Scanalyzers . | . . . . . . . . . Garrison Access . | . . . . . . . . . Total Hacks 16 | . 9 . 2 . . 4 . 1 Successful 10 | . 6 . 2 . . 1 . 1 Failed 6 | . 3 . . . . 3 . . Catastrophic 1 | . . . . . . 1 . . Database Lockouts . | . . . . . . . . . Manual 11 | . 9 . 1 . . 1 . . Terminals 13 | . 9 . . . . 4 . . Fabricators . | . . . . . . . . . Repair Stations . | . . . . . . . . . Recycling Units . | . . . . . . . . . Scanalyzers . | . . . . . . . . . Garrison Access . | . . . . . . . . . Terminal Hacks 6 | . 2 . 2 . . 1 . 1 Record 1 | . . . 1 . . . . . Robot Analysis 2 | . 2 . . . . . . . Open Door 1 | . . . . . . . . 1 Branch Access Points 1 | . . . . . . 1 . . EX-Prototype ID Bank 1 | . . . 1 . . . . . Fabricator Hacks . | . . . . . . . . . Repair Station Hacks . | . . . . . . . . . Recycling Unit Hacks . | . . . . . . . . . Scanalyzer . | . . . . . . . . . Garrison Access Hacks . | . . . . . . . . . Unauthorized Hacks 4 | . 4 . . . . . . . Terminals 4 | . 4 . . . . . . . Track 3 | . 3 . . . . . . . Operators 1 | . 1 . . . . . . . Fabricators . | . . . . . . . . . Repair Stations . | . . . . . . . . . Recycling Units . | . . . . . . . . . Scanalyzers . | . . . . . . . . . Garrison Access . | . . . . . . . . . Data Cores Recovered . | . . . . . . . . . Used . | . . . . . . . . . Hacking Detections 5 | . 3 . . . . 2 . . Full Trace Events 1 | . . . . . . 1 . . Feedback Events . | . . . . . . . . . Feedback Blocked . | . . . . . . . . . Robot Schematics Acquired . | . . . . . . . . . Robots Built . | . . . . . . . . . Matter . | . . . . . . . . . Time . | . . . . . . . . . Total Robot Build Rating . | . . . . . . . . . Part Schematics Acquired . | . . . . . . . . . Parts Built . | . . . . . . . . . Matter . | . . . . . . . . . Time . | . . . . . . . . . Total Part Build Rating . | . . . . . . . . . Parts Repaired . | . . . . . . . . . Time . | . . . . . . . . . Parts Recycled . | . . . . . . . . . Recycled Matter . | . . . . . . . . . Retrieved Matter . | . . . . . . . . . Retrieved Components . | . . . . . . . . . Parts Scanalyzed . | . . . . . . . . . Part Schematics Acquired . | . . . . . . . . . Parts Damaged . | . . . . . . . . . Bothacking | -11 -10 -10 -10 -9 -8 -7 -7 -7 ------------ Run | Scr Mat Min Exi Min Mat Fac Low Low Used RIF Installer . | . . . . . . . . . Robots Hacked . | . . . . . . . . . Non-combat . | . . . . . . . . . Combat . | . . . . . . . . . Robot Hacks Applied . | . . . . . . . . . Relay Couplers Released . | . . . . . . . . . Robots Rewired 1 | . . . . . . 1 . . Allies Hacked . | . . . . . . . . . Hacks Repelled . | . . . . . . . . . Allies | -11 -10 -10 -10 -9 -8 -7 -7 -7 -------- Run | Scr Mat Min Exi Min Mat Fac Low Low Total Allies 1 | . . . . . . 1 . . Largest Group 1 | . . . . . . 1 . . Highest-Rated Group 20 | . . . . . . 20 . . Highest-Rated Ally 20 | . . . . . . 20 . . Total Orders . | . . . . . . . . . Ally Attacks . | . . . . . . . . . Total Damage . | . . . . . . . . . Kills . | . . . . . . . . . Allies Corrupted . | . . . . . . . . . Allies Melted . | . . . . . . . . . Intel | -11 -10 -10 -10 -9 -8 -7 -7 -7 ------- Run | Scr Mat Min Exi Min Mat Fac Low Low Robot Analysis Total 2 | . 2 . . . . . . . Derelict Logs Recovered 1 | . . 1 . . . . . . Drone Launches . | . . . . . . . . . Drone Recoveries . | . . . . . . . . . Exploration | -11 -10 -10 -10 -9 -8 -7 -7 -7 ------------- Run | Scr Mat Min Exi Min Mat Fac Low Low Turns Passed 4286 | 87 1144 323 604 73 1245 385 128 297 Spaces Moved 2850 | 46 598 176 351 41 489 596 149 404 Core 1 | 1 . . . . . . . . Treads 1709 | 45 598 176 351 41 489 9 . . Legs . | . . . . . . . . . Wheels . | . . . . . . . . . Hover . | . . . . . . . . . Flight 1140 | . . . . . . 587 149 404 Fastest Speed 50 | 50 160 160 160 180 172 50 50 50 Average Speed 122 | 157 167 162 171 180 179 51 50 50 Slowest Speed 192 | 160 180 180 180 180 192 175 50 50 Overloaded Moves . | . . . . . . . . . Propulsion Burnouts . | . . . . . . . . . Robots Hopped 2 | . . . . . . 2 . . Cave-ins Triggered . | . . . . . . . . . Exploration Rate (%) 42 | 4 90 50 71 13 42 23 26 63 Regions Visited 8 Branch Regions 5 Pre-discovered Areas 1 | . . . 1 . . . . . Known Exits Taken 1 | . . . . . . 1 . . Unknown Exits Taken 7 | 1 1 1 1 1 1 . 1 . Scrap Searched 5 | . . 1 . 1 . . . 3 Spaces Dug 51 | . . . . . . 4 29 18 Terrain Destroyed 169 | . . . . . . 4 49 116 Melee 9 | . . . . . . 4 . 5 Projectile 2 | . . . . . . . 2 . AOE 158 | . . . . . . . 47 111 Terrain Rammed . | . . . . . . . . . Walls Destroyed . | . . . . . . . . . Machines Disabled . | . . . . . . . . . Actions | -11 -10 -10 -10 -9 -8 -7 -7 -7 --------- Run | Scr Mat Min Exi Min Mat Fac Low Low Total 3286 | 54 668 193 354 41 677 661 174 464 Wait 104 | . 15 4 . . 30 29 . 26 Move 2838 | 45 597 175 350 40 488 591 148 404 Hop 2 | . . . . . . 2 . . Pick Up 34 | 1 11 . 2 1 15 4 . . Fast Attach 21 | 6 2 . . . 8 3 2 . Attach 17 | . 1 2 . . 6 4 2 2 Detach 5 | . . . . . . 4 . 1 Swap 26 | . 2 . 2 . 11 3 5 3 Drop 30 | . 2 . . . 18 8 2 . Fire 186 | 2 38 12 . . 101 . 10 23 Melee 17 | . . . . . . 7 5 5 Ram . | . . . . . . . . . Kick . | . . . . . . . . . Crush . | . . . . . . . . . Escape Stasis . | . . . . . . . . . Rewire 6 | . . . . . . 6 . . Trap . | . . . . . . . . . Miscellaneous . | . . . . . . . . . Route ------- -11/Scrapyard -10/Materials (discovered 4 exits: [*Mat x3] / [*Min]) -10/Mines (discovered 3 exits: [*Mat x2] / *Exi) -10/Exiles -9/Mines -8/Materials (discovered 2 exits: *Fac / [*Sto]) -7/Factory (discovered 3 exits: [*Fac] / *Low x2) -7/Lower Caves -7/Lower Caves (discovered 1 exit: [*Fac]) History --------- Turn | Location | Event 18 | -11/Scrapyard | Discovered new exit (range 15) 88 | -11/Scrapyard | Entered Materials 233 | -10/Materials | Discovered new exit (range 15) 316 | -10/Materials | Build established: Mutant 342 | -10/Materials | Discovered new exit (range 12) 946 | -10/Materials | Discovered new exit (range 15) 1106 | -10/Materials | Discovered new exit (range 16) 1232 | -10/Materials | Entered Mines 1299 | -10/Mines | Core integrity fell below 50% 1355 | -10/Mines | Learned Materials machine intel 1357 | -10/Mines | Discovered new exit (range 5) 1382 | -10/Mines | Discovered new exit (range 8) 1547 | -10/Mines | Deemed a non-threat by the Exiles lab entrance 1549 | -10/Mines | Discovered new exit (range 5) 1555 | -10/Mines | Entered Exiles 1595 | -10/Exiles | Met 8R-AWN 1621 | -10/Exiles | Met EX-HEX 1712 | -10/Exiles | Met EX-DEC 1743 | -10/Exiles | Learned location of Zion (-7) 1894 | -10/Exiles | Met EX-BIN 1916 | -10/Exiles | Aligned with FarCom system 1918 | -10/Exiles | Given EX-Vault access code 1963 | -10/Exiles | Opened EX-Vault 1977 | -10/Exiles | Found Flying Fortress v7 1987 | -10/Exiles | Found Latent Energy Streamer 2024 | -10/Exiles | Warned to stay clear of 0b10 Research branches 2116 | -10/Exiles | Build established: Hauler-Mutant 2139 | -10/Exiles | Discovered new exit (range 14) 2159 | -10/Exiles | Stole two prototypes: Flying Fortress v7, Latent Energy Streamer 2159 | -10/Exiles | Entered Mines 2222 | -9/Mines | Discovered new exit (range 7) 2232 | -9/Mines | Entered Materials 2232 | -8/Materials | Evolved 4 slots: Propulsion x1, Utility x3 2233 | -8/Materials | Loaded intel: 52 machine locations 2368 | -8/Materials | Discovered new exit (range 16) 3130 | -8/Materials | Garrison activated, responded to threat 3236 | -8/Materials | Lost 3 parts (1p1n1u) 3465 | -8/Materials | Discovered new exit (range 6) 3477 | -8/Materials | Entered Factory 3477 | -7/Factory | Evolved 2 slots: Propulsion x1, Utility x1 3479 | -7/Factory | FarCom data flow suspended 3663 | -7/Factory | Discovered new exit (range 16) 3779 | -7/Factory | Build established: Mutant 3792 | -7/Factory | Identified exit to Lower Caves 3862 | -7/Factory | Entered Lower Caves 3862 | -7/Lower Caves | Spotted AU-VUA(f) 3863 | -7/Lower Caves | Encountered a Master Thief 3863 | -7/Lower Caves | Latent Energy Streamer stolen by Master Thief 3866 | -7/Lower Caves | Spotted VV-9ZJ(f) 3867 | -7/Lower Caves | Encountered a Master Thief 3875 | -7/Lower Caves | Mic. Nuclear Core stolen by Master Thief 3982 | -7/Lower Caves | Discovered new exit (range 15) 3984 | -7/Lower Caves | Encountered a Warlord checkpoint 3990 | -7/Lower Caves | Entered another Lower Caves area 3992 | -7/Lower Caves | Attracted the attention of an 0b10 checkpoint 4038 | -7/Lower Caves | Discovered new exit (range 15) 4186 | -7/Lower Caves | Lost 3 parts (1u2w) 4283 | -7/Lower Caves | Spotted M8-VXT(f) 4284 | -7/Lower Caves | Encountered a Master Thief 4284 | -7/Lower Caves | Spotted GZ-04N(f) 4284 | -7/Lower Caves | Spotted 0G-D80(f) 4285 | -7/Lower Caves | Encountered a Master Thief 4285 | -7/Lower Caves | Encountered a Master Thief 4285 | -7/Lower Caves | Flying Fortress v7 stolen by Master Thief 4287 | -7/Lower Caves | Spotted N7-0ZJ(f) 4287 | -7/Lower Caves | Self-destructed Last Messages --------------- 04240_ Destroyed VTOL Module. 04240_ Missile Launcher destroyed. 04240_ Destroyed Missile Launcher. 04240_ Machine disabled. 04241_ Slug penetrates S-27 Virus. 04243_ S-27 Virus destroyed. 04244_ Imp. Heat Sink fries itself beyond repair. 04244_ Slug penetrates Wall. 04246_ Gravmag System fries itself beyond repair. 04247_ Slug penetrates Wall Reinforcements. 04249_ Slug penetrates Y-64 Sentinel. 04251_ Penetrated by Slug. 04257_ Slug penetrates Machine. 04257_ Slug penetrates Y-64 Sentinel. 04260_ The unstable cave ceiling collapses. 04260_ Slug penetrates Wall. 04261_ System corrupted: Gauss Rifle targeting data glitched. 04261_ Slug penetrates Y-64 Sentinel. 04261_ Y-64 Sentinel destroyed. 04285_ Flying Fortress v7 stolen. Map ----- +----------------------------------------------------+ | ???????????????????????????????????????????? | | ???????????????????????????????????????????? | | ???????????????????????????????????????????? | | ???????????????????????????????????????????? | | ???????????????????????????????????????????? | | ???????????????????????????????????????????? | | ???????????????????????????????????????????? | | ???????????????????????????????????????????? | | ???????????????????????????????????????????? | | ???????????????????????????????????????????? | | ???????????????????????????????????????????? | | ???????????????????????????????????????????? | | ???????????????????????????????????????????? | | ???????????????????????????????????????????? | | ???????????????????????????????????????????? | | ???????????????????????????? ??????????????? | | ????????????????##?????????????????????????? | | ???????????????## ?????????????? ?? ??????? | | ???????????????# ???????????##?????????"?? | | ??????????????## ??????? ???# ??? ??? ???? | | ?????????###### ???????????# ?????? ????? | | ?????????# ???????????# ??????????? | | ?????????# "" ####??????## ???? ?? ??? | | ?????????# " ####??## ?????? ?"?? | | ?????????# """" ff # #??# ##?????? ?? | | ?????????# @f #???# ####?????? | | ?????????###### ###f #????# ?????? | | ??????????????## ##?# #?????# ?????? | | ???????????????## ???# #????## ??????? | | ????????????????###???# #??????# #??????? | | ????????????????????### #???????# ######## | | ???????????????????## ####????## | | ??????????????????## ##?### | | ???????????????????# ### ####### | | ???????????????????# ### ##"""""" | | ???????????????#?? ?## ## | | ???????????????? ?# #? | | ???????????????# ### | | ???????????????# ## % | | ???????????????# ### ## #% | | ???????????????### #?# ## % | | ?????????????????## ?# ##" | | ??????????????????## ##X [ | | ???????????????????# # ?###"""" | | ?????????????????#?# ## ## ????#### | | ???????????????????### #?## ### ????? ? | | ?????????????????????###???#####?####??????? | | ????????????????????????????#??????????????? | | ???????????????????????#?#?????????????????? | | ???????????????????????????????????????????? | +----------------------------------------------------+ Best States ------------- Heat Dissipation 34 Energy Generation 15 Energy Capacity 250 Matter Stores 300 Matter Capacity 300 Sight Range 16 Robot Scan Range 16 Terrain Scan Range 24 Terrain Scan Density 10 Armor Coverage 450 Resistance: KI 20 Evasion (%) 60 Recoil Reduction 3 Defensive Hacking 10 Item Schematics ----------------- None Robot Schematics ------------------ None Fabricated ------------ Nothing Alien Tech Used ----------------- None Achievements -------------- None Challenges ------------ None Game ------ Seed MinesnifferCoilFilter Manual? 0 Play Time 00:24:31 Cumulative 187.6 hours Start 2021.06.07 @ 19:23:27 End 2021.06.07 @ 19:51:37 Sessions 3 Manual Loads 0 Difficulty Rogue Special Mode None Game No. 237 Rogue 150 Adventurer 87 Explorer 0 Win Type - Total 4 Types 3/0/0/1/0/0/0/0/0 Lore% 67 Gallery% 74 Achievement% 61 Wizard Run 0 Options --------- ASCII 0 Keyboard 1 Movement Numpad Keybinds 0 Fullscreen 1 Font 18/Smallcaps Map View 76x50 Tactical HUD 1 Map Filters NONE Filters NONE Steam 1 RUN: a6f99a33-00f8-433c-9e43-e7defa572c5f